fUSD/lending_fUSD_20240428
["ID","MTS","AMOUNT","RATE_DAILY","PERIOD"]
[26617,1714330267236,-500.0,0.00011506,2]
[26619,1714330267255,-489.81294882,0.00011506,2]
[26621,1714330267274,-500.0,0.00011506,2]
[26623,1714330267305,-500.0,0.00011506,2]
[26625,1714330267331,-500.0,0.00011506,2]
[26627,1714330267355,-500.0,0.00011506,2]
[26629,1714330267375,-500.0,0.00011506,2]
[26631,1714330267395,-803.34,0.00011506,2]
[26633,1714330267414,-500.0,0.00011506,2]
[26635,1714330267433,-500.0,0.00011506,2]
[26637,1714330267451,-500.0,0.00011506,2]
[26639,1714330267470,-500.0,0.00011506,2]
[26641,1714330267488,-500.0,0.00011506,2]
[26643,1714330267508,-500.0,0.00011506,2]
[26645,1714330267526,-500.0,0.00011506,2]
[26647,1714330267544,-500.0,0.00011506,2]
[26649,1714330267563,-174.09954682,0.00011506,2]
[26651,1714330267581,-500.0,0.00011506,2]
[26653,1714330267600,-162.71601414,0.00011506,2]
[26654,1714330267609,-500.0,0.00011506,2]
[26655,1714330267619,-500.0,0.00011506,2]
[26657,1714330267637,-500.0,0.00011506,2]
[26658,1714330267646,-500.0,0.00011506,2]
[26659,1714330267655,-500.0,0.00011506,2]
[26661,1714330267674,-500.0,0.00011506,2]
[26663,1714330267693,-500.0,0.00011506,2]
[26665,1714330267712,-500.0,0.00011506,2]
[26667,1714330267730,-500.0,0.00011506,2]
[26669,1714330267752,-500.0,0.00011506,2]
[26671,1714330267770,-500.0,0.00011506,2]
[26673,1714330267789,-500.0,0.00011506,2]
[26675,1714330267807,-500.0,0.00011506,2]
[26677,1714330267826,-500.0,0.00011506,2]
[26679,1714330267845,-500.0,0.00011506,2]
[26681,1714330267863,-500.0,0.00011506,2]
[26683,1714330267882,-500.0,0.00011506,2]
[26685,1714330267900,-500.0,0.00011506,2]
[26687,1714330267918,-500.0,0.00011506,2]
[26689,1714330267936,-500.0,0.00011506,2]
[26691,1714330267955,-500.0,0.00011506,2]
[26693,1714330267972,-500.0,0.00011506,2]
[26695,1714330267990,-500.0,0.00011506,2]
[26697,1714330268012,-645.64612939,0.00011506,2]
[26699,1714330268032,-710.83,0.00011506,2]
[26701,1714330268343,-500.0,0.00011506,2]
[26703,1714330268363,-574.14,0.00011506,2]
[26705,1714330268381,-500.0,0.00011506,2]
[26707,1714330268400,-500.0,0.00011506,2]
[26709,1714330268418,-500.0,0.00011506,2]
[26711,1714330268437,-500.0,0.00011506,2]
[26713,1714330268456,-500.0,0.00011506,2]
[26715,1714330268474,-500.0,0.00011506,2]
[26717,1714330268492,-500.0,0.00011506,2]
[26719,1714330268511,-500.0,0.00011506,2]
[26721,1714330268531,-500.0,0.00011506,2]
[26723,1714330268550,-691.7,0.00011506,2]
[26725,1714330268568,-783.07,0.00011506,2]
[26727,1714330268587,-500.0,0.00011506,2]
[26729,1714330268606,-500.0,0.00011506,2]
[26731,1714330268625,-500.0,0.00011506,2]
[26733,1714330268644,-687.24,0.00011506,2]
[26735,1714330268664,-500.0,0.00011506,2]
[26737,1714330268683,-827.3,0.00011506,2]
[26739,1714330268701,-1034.79,0.00011506,2]
[26741,1714330268719,-500.0,0.00011506,2]
[26743,1714330268739,-648.34,0.00011506,2]
[26745,1714330268759,-500.0,0.00011506,2]
[26747,1714330268777,-500.0,0.00011506,2]
[26748,1714330268789,-500.0,0.00011506,2]
[26749,1714330268799,-500.0,0.00011506,2]
[26751,1714330268824,-500.0,0.00011506,2]
[26753,1714330268856,-500.0,0.00011506,2]
[26755,1714330268877,-500.0,0.00011506,2]
[26757,1714330268896,-500.0,0.00011506,2]
[26759,1714330268926,-605.8,0.00011506,2]
[26761,1714330268972,-1173.43,0.00011506,2]
[26763,1714330269003,-674.07,0.00011506,2]
[26765,1714330269023,-500.0,0.00011506,2]
[26767,1714330269054,-675.25,0.00011506,2]
[26769,1714330269072,-500.0,0.00011506,2]
[26771,1714330269090,-543.49,0.00011506,2]
[26773,1714330269109,-500.0,0.00011506,2]
[26775,1714330269147,-506.77,0.00011506,2]
[26777,1714330269174,-1209.36,0.00011506,2]
[26779,1714330269197,-500.0,0.00011506,2]
[26781,1714330269219,-500.0,0.00011506,2]
[26783,1714330269239,-816.19,0.00011506,2]
[26785,1714330269258,-752.62,0.00011506,2]
[26787,1714330269302,-236.21249808,0.00011506,2]
[26788,1714330269312,-500.0,0.00011506,2]
[26789,1714330269322,-500.0,0.00011506,2]
[26791,1714330269343,-1155.93,0.00011506,2]
[26793,1714330269363,-500.0,0.00011506,2]
[26795,1714330269384,-500.0,0.00011506,2]
[26797,1714330269405,-500.0,0.00011506,2]
[26799,1714330269443,-500.0,0.00011506,2]
[26801,1714330269482,-500.0,0.00011506,2]
[26803,1714330269518,-500.0,0.00011506,2]
[26805,1714330269536,-505.14,0.00011506,2]
[26807,1714330269565,-500.0,0.00011506,2]
[26809,1714330269606,-769.66,0.00011506,2]
[26811,1714330269630,-712.62,0.00011506,2]
[26813,1714330269651,-500.0,0.00011506,2]
[26815,1714330269673,-500.0,0.00011506,2]
[26816,1714330269682,-500.0,0.00011506,2]
[26817,1714330269691,-500.0,0.00011506,2]
[26819,1714330269710,-733.62,0.00011506,2]
[26821,1714330269730,-1047.14,0.00011506,2]
[26823,1714330269753,-538.47,0.00011506,2]
[26824,1714330269762,-500.0,0.00011506,2]
[26825,1714330269772,-676.85,0.00011506,2]
[26826,1714330269782,-1010.38,0.00011506,2]
[26827,1714330269791,-524.61,0.00011506,2]
[26828,1714330269800,-500.0,0.00011506,2]
[26829,1714330269810,-500.0,0.00011506,2]
[26830,1714330269819,-500.0,0.00011506,2]
[26831,1714330269828,-500.0,0.00011506,2]
[26832,1714330269838,-500.0,0.00011506,2]
[26833,1714330269848,-500.0,0.00011506,2]
[26835,1714330269867,-500.0,0.00011506,2]
[26837,1714330269886,-500.0,0.00011506,2]
[26839,1714330269904,-500.0,0.00011506,2]
[26840,1714330269914,-500.0,0.00011506,2]
[26841,1714330269923,-797.7,0.00011506,2]
[26843,1714330269942,-556.53,0.00011506,2]
[26845,1714330269960,-500.0,0.00011506,2]
[26847,1714330269979,-506.71,0.00011506,2]
[26849,1714330270000,-560.23,0.00011506,2]
[26851,1714330270028,-500.0,0.00011506,2]
[26853,1714330270049,-543.35,0.00011506,2]
[26855,1714330270070,-500.0,0.00011506,2]
[26857,1714330270090,-668.47,0.00011506,2]
[26859,1714330270113,-540.35,0.00011506,2]
[26861,1714330270132,-623.06,0.00011506,2]
[26863,1714330270150,-500.0,0.00011506,2]
[26865,1714330270169,-604.82,0.00011506,2]
[26867,1714330270188,-500.0,0.00011506,2]
[26869,1714330270207,-500.0,0.00011506,2]
[26870,1714330270216,-500.0,0.00011506,2]
[26871,1714330270225,-500.0,0.00011506,2]
[26873,1714330270244,-500.0,0.00011506,2]
[26875,1714330270264,-500.0,0.00011506,2]
[26877,1714330270283,-550.18,0.00011506,2]
[26879,1714330270301,-500.0,0.00011506,2]
[26881,1714330270320,-690.83,0.00011506,2]
[26883,1714330270338,-720.48,0.00011506,2]
[26884,1714330270352,-653.71,0.00011506,2]
[26885,1714330270362,-544.66,0.00011506,2]
[26886,1714330270371,-500.0,0.00011506,2]
[26887,1714330270381,-500.0,0.00011506,2]
[26888,1714330270391,-500.0,0.00011506,2]
[26889,1714330270400,-500.0,0.00011506,2]
[26890,1714330270409,-500.0,0.00011506,2]
[26891,1714330270419,-500.0,0.00011506,2]
[26892,1714330270428,-500.0,0.00011506,2]
[26893,1714330270438,-500.0,0.00011506,2]
[26894,1714330270448,-665.55,0.00011506,2]
[26895,1714330270457,-786.95,0.00011506,2]
[26896,1714330270467,-500.0,0.00011506,2]
[26897,1714330270475,-500.0,0.00011506,2]
[26898,1714330270485,-500.0,0.00011506,2]
[26899,1714330270494,-1257.71,0.00011506,2]
[26900,1714330270505,-500.0,0.00011506,2]
[26901,1714330270514,-686.89,0.00011506,2]
[26902,1714330270524,-504.53419859,0.00011506,2]
[26903,1714330270534,-500.0,0.00011506,2]
[26904,1714330270543,-500.0,0.00011506,2]
[26905,1714330270552,-636.22100924,0.00011506,2]
[26906,1714330270561,-500.0,0.00011506,2]
[26907,1714330270571,-500.0,0.00011506,2]
[26908,1714330270580,-500.0,0.00011506,2]
[26909,1714330270590,-500.0,0.00011506,2]
[26910,1714330270600,-500.0,0.00011506,2]
[26911,1714330270609,-500.0,0.00011506,2]
[26912,1714330270619,-500.0,0.00011506,2]
[26913,1714330270629,-558.15,0.00011506,2]
[26914,1714330270639,-500.0,0.00011506,2]
[26915,1714330270649,-500.0,0.00011506,2]
[26916,1714330270659,-819.5,0.00011506,2]
[26917,1714330270668,-500.0,0.00011506,2]
[26918,1714330270678,-534.16,0.00011506,2]
[26919,1714330270688,-611.54,0.00011506,2]
[26920,1714330270697,-912.18,0.00011506,2]
[26921,1714330270707,-500.0,0.00011506,2]
[26922,1714330270716,-500.0,0.00011506,2]
[26923,1714330270725,-610.19,0.00011506,2]
[26924,1714330270735,-584.65,0.00011506,2]
[26925,1714330270744,-848.09,0.00011506,2]
[26926,1714330270754,-500.0,0.00011506,2]
[26927,1714330270764,-500.0,0.00011506,2]
[26928,1714330270774,-500.0,0.00011506,2]
[26929,1714330270783,-529.18,0.00011506,2]
[26930,1714330270793,-500.0,0.00011506,2]
[26931,1714330270802,-500.0,0.00011506,2]
[26932,1714330270811,-500.0,0.00011506,2]
[26933,1714330270821,-791.19,0.00011506,2]
[26934,1714330270830,-500.0,0.00011506,2]
[26935,1714330270840,-500.0,0.00011506,2]
[26936,1714330270850,-500.0,0.00011506,2]
[26937,1714330270859,-500.0,0.00011506,2]
[26939,1714330270878,-500.0,0.00011506,2]
[26941,1714330270897,-500.0,0.00011506,2]
[26943,1714330270919,-852.02,0.00011506,2]
[26945,1714330270937,-609.16,0.00011506,2]
[26947,1714330270956,-500.0,0.00011506,2]
[26949,1714330270975,-500.0,0.00011506,2]
[26951,1714330270994,-541.84,0.00011506,2]
[26953,1714330271014,-500.0,0.00011506,2]
[26955,1714330271035,-500.0,0.00011506,2]
[26957,1714330271054,-1399.48,0.00011506,2]
[26959,1714330271073,-500.0,0.00011506,2]
[26961,1714330271093,-676.03,0.00011506,2]
[26963,1714330271113,-596.23,0.00011506,2]
[26965,1714330271132,-500.0,0.00011506,2]
[26967,1714330271152,-500.0,0.00011506,2]
[26969,1714330271172,-500.0,0.00011506,2]
[26971,1714330271192,-500.0,0.00011506,2]
[26973,1714330271211,-500.0,0.00011506,2]
[26975,1714330271230,-500.0,0.00011506,2]
[26977,1714330271251,-1485.82,0.00011506,2]
[26979,1714330271271,-158.09957155,0.00011506,2]
[26981,1714330271290,-681.29,0.00011506,2]
[26983,1714330271310,-500.0,0.00011506,2]
[26985,1714330271330,-770.56,0.00011506,2]
[26987,1714330271349,-500.0,0.00011506,2]
[26989,1714330271369,-500.0,0.00011506,2]
[26991,1714330271388,-539.94502846,0.00011506,2]
[26993,1714330271406,-894.51,0.00011506,2]
[26995,1714330271425,-584.59,0.00011506,2]
[26997,1714330271444,-500.0,0.00011506,2]
[26998,1714330271453,-500.0,0.00011506,2]
[26999,1714330271462,-500.0,0.00011506,2]
[27000,1714330271472,-500.0,0.00011506,2]
[27001,1714330271481,-500.0,0.00011506,2]
[27003,1714330271502,-500.0,0.00011506,2]
[27005,1714330271520,-500.0,0.00011506,2]
[27007,1714330271539,-584.09,0.00011506,2]
[27009,1714330271559,-518.7321444,0.00011506,2]
[27011,1714330271578,-500.0,0.00011506,2]
[27013,1714330271596,-505.97,0.00011506,2]
[27015,1714330271616,-500.0,0.00011506,2]
[27017,1714330271635,-500.0,0.00011506,2]
[27019,1714330271653,-500.0,0.00011506,2]
[27021,1714330271672,-531.75,0.00011506,2]
[27023,1714330271691,-514.87,0.00011506,2]
[27025,1714330271710,-500.0,0.00011506,2]
[27027,1714330271729,-668.62,0.00011506,2]
[27029,1714330271750,-1310.84,0.00011506,2]
[27031,1714330271768,-500.0,0.00011506,2]
[27033,1714330271787,-500.0,0.00011506,2]
[27035,1714330271806,-542.33,0.00011506,2]
[27037,1714330271824,-531.2,0.00011506,2]
[27038,1714330271834,-500.0,0.00011506,2]
[27039,1714330271844,-635.02,0.00011506,2]
[27040,1714330271853,-500.0,0.00011506,2]
[27041,1714330271863,-538.67,0.00011506,2]
[27042,1714330271872,-500.0,0.00011506,2]
[27043,1714330271881,-500.0,0.00011506,2]
[27045,1714330271901,-500.0,0.00011506,2]
[27047,1714330271919,-500.0,0.00011506,2]
[27049,1714330271938,-500.0,0.00011506,2]
[27051,1714330271957,-500.0,0.00011506,2]
[27053,1714330271976,-500.0,0.00011506,2]
[27055,1714330271995,-500.0,0.00011506,2]
[27057,1714330272017,-984.05,0.00011506,2]
[27059,1714330272036,-169.71257852,0.00011506,2]
[27061,1714330272056,-1766.46,0.00011506,2]
[27063,1714330272075,-500.0,0.00011506,2]
[27065,1714330272095,-184.20592858,0.00011506,2]
[27067,1714330272115,-787.21,0.00011506,2]
[27069,1714330272133,-500.0,0.00011506,2]
[27071,1714330272151,-500.0,0.00011506,2]
[27073,1714330272170,-500.0,0.00011506,2]
[27075,1714330272188,-500.0,0.00011506,2]
[27077,1714330272208,-3550.13,0.00011506,2]
[27079,1714330272226,-500.0,0.00011506,2]
[27081,1714330272246,-500.0,0.00011506,2]
[27083,1714330272267,-910.91,0.00011506,2]
[27085,1714330272286,-1706.94,0.00011506,2]
[27087,1714330272305,-577.6,0.00011506,2]
[27089,1714330272324,-500.0,0.00011506,2]
[27091,1714330272343,-682.07,0.00011506,2]
[27093,1714330272362,-569.46,0.00011506,2]
[27095,1714330272381,-500.0,0.00011506,2]
[27097,1714330272400,-500.0,0.00011506,2]
[27099,1714330272420,-1152.15,0.00011506,2]
[27101,1714330272439,-500.0,0.00011506,2]
[27103,1714330272458,-2448.23,0.00011506,2]
[27105,1714330272477,-500.0,0.00011506,2]
[27107,1714330272495,-500.0,0.00011506,2]
[27109,1714330272516,-630.39,0.00011506,2]
[27111,1714330272535,-500.0,0.00011506,2]
[27113,1714330272554,-500.0,0.00011506,2]
[27115,1714330272572,-500.0,0.00011506,2]
[27117,1714330272591,-4467.12,0.00011506,2]
[27119,1714330272609,-888.23,0.00011506,2]
[27121,1714330272628,-500.0,0.00011506,2]
[27122,1714330272637,-505.1851313,0.00011506,2]
[27123,1714330272646,-564.59,0.00011506,2]
[27124,1714330272656,-500.0,0.00011506,2]
[27125,1714330272666,-1296.75,0.00011506,2]
[27126,1714330272675,-500.0,0.00011506,2]
[27127,1714330272684,-512.49,0.00011506,2]
[27128,1714330272693,-500.0,0.00011506,2]
[27129,1714330272703,-1782.61,0.00011506,2]
[27130,1714330272712,-704.62,0.00011506,2]
[27131,1714330272722,-500.0,0.00011506,2]
[27133,1714330272741,-500.0,0.00011506,2]
[27135,1714330272761,-1022.85,0.00011506,2]
[27137,1714330272779,-500.0,0.00011506,2]
[27139,1714330272798,-1933.98,0.00011506,2]
[27141,1714330272818,-994.43,0.00011506,2]
[27143,1714330272836,-500.0,0.00011506,2]
[27145,1714330272855,-500.0,0.00011506,2]
[27147,1714330272874,-500.0,0.00011506,2]
[27149,1714330272893,-8503.81,0.00011506,2]
[27151,1714330272912,-774.85,0.00011506,2]
[27153,1714330272930,-500.0,0.00011506,2]
[27155,1714330272948,-683.75,0.00011506,2]
[27157,1714330272967,-596.83515145,0.00011506,2]
[27159,1714330272986,-1641.26,0.00011506,2]
[27161,1714330273007,-665.7,0.00011506,2]
[27163,1714330273026,-500.0,0.00011506,2]
[27165,1714330273047,-1293.62,0.00011506,2]
[27167,1714330273066,-997.5,0.00011506,2]
[27169,1714330273091,-1693.66,0.00011506,2]
[27171,1714330273116,-500.0,0.00011506,2]
[27172,1714330273128,-500.0,0.00011506,2]
[27173,1714330273140,-931.84,0.00011506,2]
[27174,1714330273150,-660.46,0.00011506,2]
[27175,1714330273161,-206.11,0.00011506,2]
[27176,1714330273171,-500.0,0.00011506,2]
[27177,1714330273184,-542.43,0.00011506,2]
[27178,1714330273195,-870.45,0.00011506,2]
[27179,1714330273206,-612.11,0.00011506,2]
[27180,1714330273217,-500.0,0.00011506,2]
[27181,1714330273229,-23675.76,0.00011506,2]
[27182,1714330273241,-500.0,0.00011506,2]
[27183,1714330273255,-591.63,0.00011506,2]
[27184,1714330273267,-500.0,0.00011506,2]
[27185,1714330273278,-965.63,0.00011506,2]
[27186,1714330273289,-1316.83,0.00011506,2]
[27187,1714330273302,-509.84,0.00011506,2]
[27189,1714330273327,-1414.09,0.00011506,2]
[27190,1714330273338,-500.0,0.00011506,2]
[27191,1714330273350,-500.0,0.00011506,2]
[27192,1714330273361,-630.98,0.00011506,2]
[27193,1714330273372,-500.0,0.00011506,2]
[27194,1714330273383,-655.6,0.00011506,2]
[27195,1714330273395,-500.0,0.00011506,2]
[27196,1714330273406,-500.0,0.00011506,2]
[27197,1714330273418,-704.88,0.00011506,2]
[27198,1714330273429,-500.0,0.00011506,2]
[27199,1714330273441,-500.0,0.00011506,2]
[27200,1714330273452,-500.0,0.00011506,2]
[27201,1714330273462,-500.0,0.00011506,2]
[27203,1714330273483,-3287.06,0.00011506,2]
[27205,1714330273508,-500.0,0.00011506,2]
[27207,1714330273530,-500.0,0.00011506,2]
[27209,1714330273552,-1207.68,0.00011506,2]
[27211,1714330273575,-1438.07,0.00011506,2]
[27213,1714330273598,-500.0,0.00011506,2]
[27215,1714330273622,-777.16,0.00011506,2]
[27217,1714330273647,-500.0,0.00011506,2]
[27219,1714330273669,-500.0,0.00011506,2]
[27221,1714330273690,-567.44,0.00011506,2]
[27223,1714330273711,-500.0,0.00011506,2]
[27225,1714330273734,-500.0,0.00011506,2]
[27227,1714330273757,-744.54,0.00011506,2]
[27229,1714330273782,-1070.24,0.00011506,2]
[27231,1714330273802,-1147.86,0.00011506,2]
[27233,1714330273825,-825.59,0.00011506,2]
[27235,1714330273846,-500.0,0.00011506,2]
[27237,1714330273871,-500.0,0.00011506,2]
[27239,1714330273892,-500.0,0.00011506,2]
[27241,1714330273912,-500.0,0.00011506,2]
[27243,1714330273935,-500.0,0.00011506,2]
[27245,1714330273956,-3560.38,0.00011506,2]
[27247,1714330273978,-500.0,0.00011506,2]
[27249,1714330274001,-1778.2,0.00011506,2]
[27251,1714330274026,-880.71,0.00011506,2]
[27253,1714330274047,-1623.82,0.00011506,2]
[27255,1714330274079,-500.0,0.00011506,2]
[27257,1714330274109,-500.0,0.00011506,2]
[27259,1714330274134,-500.0,0.00011506,2]
[27261,1714330274155,-500.0,0.00011506,2]
[27263,1714330274180,-500.0,0.00011506,2]
[27265,1714330274213,-980.3,0.00011506,2]
[27267,1714330274236,-27117.26,0.00011506,2]
[27269,1714330274264,-500.0,0.00011506,2]
[27271,1714330274287,-1152.66,0.00011506,2]
[27273,1714330274309,-500.0,0.00011506,2]
[27275,1714330274331,-500.0,0.00011506,2]
[27277,1714330274352,-1674.46,0.00011506,2]
[27279,1714330274373,-1382.69,0.00011506,2]
[27281,1714330274395,-1161.36,0.00011506,2]
[27283,1714330274417,-500.0,0.00011506,2]
[27285,1714330274441,-500.0,0.00011506,2]
[27286,1714330274451,-1130.58,0.00011506,2]
[27287,1714330274462,-500.0,0.00011506,2]
[27289,1714330274483,-500.0,0.00011506,2]
[27291,1714330274506,-500.0,0.00011506,2]
[27293,1714330274528,-500.0,0.00011506,2]
[27295,1714330274550,-1003.95,0.00011506,2]
[27297,1714330274572,-500.0,0.00011506,2]
[27299,1714330274594,-1137.44,0.00011506,2]
[27301,1714330274617,-500.0,0.00011506,2]
[27303,1714330274638,-500.0,0.00011506,2]
[27305,1714330274659,-500.0,0.00011506,2]
[27307,1714330274681,-1555.52,0.00011506,2]
[27309,1714330274702,-179.343818,0.00011506,2]
[27311,1714330274724,-500.0,0.00011506,2]
[27313,1714330274746,-806.45,0.00011506,2]
[27315,1714330274769,-500.0,0.00011506,2]
[27317,1714330274789,-500.0,0.00011506,2]
[27319,1714330274811,-500.0,0.00011506,2]
[27321,1714330274832,-502.76212884,0.00011506,2]
[27323,1714330274853,-500.0,0.00011506,2]
[27325,1714330274874,-500.0,0.00011506,2]
[27327,1714330274896,-500.0,0.00011506,2]
[27329,1714330274918,-1854.45,0.00011506,2]
[27331,1714330274939,-500.0,0.00011506,2]
[27332,1714330274950,-1180.48,0.00011506,2]
[27333,1714330274961,-500.0,0.00011506,2]
[27334,1714330274971,-2492.61,0.00011506,2]
[27335,1714330274982,-500.0,0.00011506,2]
[27336,1714330274993,-612.09,0.00011506,2]
[27337,1714330275005,-500.0,0.00011506,2]
[27339,1714330275028,-500.0,0.00011506,2]
[27340,1714330275043,-500.0,0.00011506,2]
[27341,1714330275054,-500.0,0.00011506,2]
[27342,1714330275070,-1412.81,0.00011506,2]
[27343,1714330275088,-599.7,0.00011506,2]
[27345,1714330275132,-511.53,0.00011506,2]
[27346,1714330275149,-500.0,0.00011506,2]
[27347,1714330275166,-500.0,0.00011506,2]
[27349,1714330275212,-1106.23,0.00011506,2]
[27351,1714330275248,-500.0,0.00011506,2]
[27353,1714330275272,-1147.32,0.00011506,2]
[27355,1714330275297,-2538.5,0.00011506,2]
[27357,1714330275322,-958.47,0.00011506,2]
[27359,1714330275347,-500.0,0.00011506,2]
[27361,1714330275370,-500.0,0.00011506,2]
[27363,1714330275392,-1712.91,0.00011506,2]
[27365,1714330275417,-1264.5,0.00011506,2]
[27367,1714330275440,-832.48,0.00011506,2]
[27369,1714330276266,-500.0,0.00011506,2]
[27371,1714330276297,-150.0,0.00011506,2]
[27373,1714330276316,-500.0,0.00011506,2]
[27375,1714330276335,-500.0,0.00011506,2]
[27377,1714330276355,-6992.63,0.00011506,2]
[27379,1714330276375,-500.0,0.00011506,2]
[27381,1714330276396,-3131.96,0.00011506,2]
[27383,1714330276415,-500.0,0.00011506,2]
[27385,1714330276434,-500.0,0.00011506,2]
[27387,1714330276452,-500.0,0.00011506,2]
[27389,1714330276472,-2573.34,0.00011506,2]
[27391,1714330276491,-500.0,0.00011506,2]
[27393,1714330276512,-500.0,0.00011506,2]
[27395,1714330276530,-500.0,0.00011506,2]
[27397,1714330276549,-500.0,0.00011506,2]
[27399,1714330276568,-4086.19,0.00011506,2]
[27401,1714330276587,-717.59,0.00011506,2]
[27403,1714330276605,-500.0,0.00011506,2]
[27405,1714330276623,-1340.05,0.00011506,2]
[27407,1714330276642,-240.69372823,0.00011506,2]
[27409,1714330276662,-789.62,0.00011506,2]
[27411,1714330276681,-500.0,0.00011506,2]
[27413,1714330276701,-500.0,0.00011506,2]
[27415,1714330276720,-500.0,0.00011506,2]
[27417,1714330276739,-500.0,0.00011506,2]
[27419,1714330276760,-699.87,0.00011506,2]
[27421,1714330276779,-500.0,0.00011506,2]
[27423,1714330276799,-500.0,0.00011506,2]
[27425,1714330276818,-538.73770036,0.00011506,2]
[27427,1714330276837,-756.71,0.00011506,2]
[27429,1714330276856,-588.16609225,0.00011506,2]
[27431,1714330276874,-1268.89,0.00011506,2]
[27433,1714330276899,-502.31942489,0.00011506,2]
[27435,1714330276920,-500.0,0.00011506,2]
[27437,1714330276941,-500.0,0.00011506,2]
[27439,1714330276963,-500.0,0.00011506,2]
[27441,1714330276983,-958.48,0.00011506,2]
[27443,1714330277006,-500.0,0.00011506,2]
[27444,1714330277018,-507.73183003,0.00011506,2]
[27445,1714330277028,-2082.17,0.00011506,2]
[27446,1714330277042,-3573.43,0.00011506,2]
[27447,1714330277052,-16792.48,0.00011506,2]
[27448,1714330277062,-620.34,0.00011506,2]
[27449,1714330277072,-704.01,0.00011506,2]
[27450,1714330277083,-500.0,0.00011506,2]
[27451,1714330277093,-1111.15,0.00011506,2]
[27452,1714330277103,-513.62,0.00011506,2]
[27453,1714330277115,-1109.42,0.00011506,2]
[27454,1714330277126,-500.0,0.00011506,2]
[27455,1714330277135,-500.0,0.00011506,2]
[27456,1714330277145,-672.0,0.000116,2]
[27457,1714330277155,-400.0,0.0001161,2]
[27458,1714330277165,-317.61,0.00011656,2]
[27459,1714330277176,-19496.21587412,0.000117,2]